bitfinex-derivatives/quotes_BTCF0:USTF0_20241208
["timestamp","ask_amount","ask_price","bid_price","bid_amount"]
[1733679335482,0.045019,99901.0,99900.0,0.11]
[1733679335688,0.045019,99901.0,99900.0,0.1]
[1733679335689,0.405819,99901.0,99900.0,0.1]
[1733679336690,0.406819,99901.0,99900.0,0.1]
[1733679337288,0.55730486,99901.0,99900.0,0.1]
[1733679337586,0.407819,99901.0,99900.0,0.1]
[1733679337991,0.439319,99901.0,99900.0,0.1]
[1733679339186,0.44948353,99901.0,99900.0,0.1]
[1733679341086,0.44948353,99901.0,99900.0,1e-06]
[1733679342195,0.46922888,99901.0,99900.0,1e-06]
[1733679343689,0.47922888,99901.0,99900.0,1e-06]
[1733679346983,0.6589527,99901.0,99900.0,1e-06]
[1733679347388,0.47922888,99901.0,99900.0,1e-06]
[1733679348198,0.65891513,99901.0,99900.0,1e-06]
[1733679348393,0.47922888,99901.0,99900.0,1e-06]
[1733679349691,0.65891513,99901.0,99900.0,1e-06]
[1733679350595,0.47922888,99901.0,99900.0,1e-06]
[1733679353387,0.47922888,99901.0,99888.0,0.01]
[1733679353593,0.405825,99889.0,99883.0,1.5006]
[1733679353787,0.405825,99889.0,99884.0,0.00813653]
[1733679353996,0.405825,99889.0,99885.0,0.00312943]
[1733679354196,0.405825,99889.0,99886.0,0.00312943]
[1733679354396,0.045025,99888.0,99887.0,0.00312943]
[1733679356298,0.046025,99888.0,99887.0,0.00312943]
[1733679356699,0.047025,99888.0,99887.0,0.00312943]
[1733679357394,0.047025,99888.0,99887.0,0.00312949]
[1733679357900,0.045028,99881.0,99880.0,1.5006]
[1733679358089,0.045031,99874.0,99873.0,0.17933477]
[1733679358294,0.405828,99881.0,99870.0,0.17933477]
[1733679358489,0.405832,99872.0,99870.0,0.17933477]
[1733679358696,0.405832,99872.0,99871.0,1.5637]
[1733679358890,0.405832,99872.0,99871.0,1.57183723]
[1733679359402,0.405832,99872.0,99871.0,1.5637]
[1733679360304,0.405832,99872.0,99871.0,0.03422972]
[1733679360601,0.406832,99872.0,99871.0,0.0311]
[1733679361106,0.407832,99872.0,99871.0,0.0311]
[1733679361595,0.406832,99872.0,99871.0,0.0311]
[1733679362105,0.405832,99872.0,99871.0,0.0311]
[1733679363200,0.405832,99872.0,99861.0,0.01]
[1733679363201,0.045037,99862.0,99861.0,0.01]
[1733679363406,0.045038,99860.0,99859.0,0.0318]
[1733679364305,0.405837,99862.0,99854.0,1.50064]
[1733679364504,0.3608,99860.0,99853.0,0.0318]
[1733679364700,0.045041,99854.0,99853.0,0.0318]
[1733679365299,0.045041,99854.0,99853.0,0.03493031]
[1733679366905,0.045041,99854.0,99853.0,0.00313031]
[1733679367109,0.045045,99845.0,99844.0,0.01]
[1733679367406,0.045047,99839.0,99838.0,0.01]
[1733679367710,0.045047,99839.0,99838.0,1.5]
[1733679368504,0.3608,99843.0,99838.0,1.5]
[1733679368695,0.3108,99843.0,99838.0,1.5]
[1733679368900,0.3108,99843.0,99840.0,0.045047]
[1733679369606,0.06322301,99850.0,99838.0,1.5]
[1733679369607,8.488e-05,99850.0,99838.0,1.5]
[1733679369806,8.488e-05,99850.0,99848.0,0.045043]
[1733679370001,0.045043,99848.0,99844.0,0.045045]
[1733679370306,0.045043,99848.0,99840.0,0.06313813]
[1733679370307,0.045043,99848.0,99840.0,0.17933477]
[1733679370509,0.045043,99848.0,99845.0,0.045044]
[1733679370706,0.045043,99848.0,99840.0,0.17933477]
[1733679370707,0.00108488,99850.0,99840.0,0.17933477]
[1733679370902,0.04612688,99850.0,99847.0,0.045044]
[1733679371202,0.045043,99848.0,99847.0,0.045043]
[1733679371407,0.046043,99848.0,99847.0,0.05005127]
[1733679372010,0.046043,99848.0,99847.0,0.045043]
[1733679372510,0.046043,99848.0,99847.0,0.05005127]
[1733679373207,0.045043,99848.0,99847.0,0.05005127]
[1733679373408,0.045043,99848.0,99847.0,0.045043]
[1733679373708,0.046043,99848.0,99847.0,0.045043]
[1733679377615,0.001,99848.0,99847.0,0.045043]
[1733679379015,0.001,99848.0,99847.0,0.04817317]
[1733679379416,0.001,99848.0,99847.0,0.40897317]
[1733679379713,0.001,99848.0,99847.0,0.58830794]
[1733679380104,0.001,99848.0,99847.0,0.40897317]
[1733679380509,0.001,99848.0,99847.0,0.41398126]
[1733679380714,0.046043,99848.0,99847.0,0.41398126]
[1733679381111,0.046043,99848.0,99847.0,0.05318126]
[1733679382212,0.046043,99848.0,99847.0,0.00813826]
[1733679386112,0.046043,99848.0,99847.0,0.00313017]
[1733679386113,0.045043,99848.0,99847.0,0.00313017]
[1733679388017,0.05529295,99848.0,99847.0,0.00313017]
[1733679388423,0.18987255,99848.0,99838.0,1.5]
[1733679388620,0.0311,99847.0,99839.0,0.00313049]
[1733679388821,0.0311,99847.0,99838.0,1.5]
[1733679388822,0.045046,99841.0,99840.0,0.00313049]
[1733679390427,0.046046,99841.0,99840.0,0.00313049]
[1733679393226,0.046046,99841.0,99840.0,1.50313049]
[1733679395622,0.046046,99841.0,99840.0,1.68768568]
[1733679395821,0.046046,99841.0,99840.0,1.50813945]
[1733679396625,0.046046,99841.0,99840.0,1.68768568]
[1733679396922,0.046046,99841.0,99840.0,1.50813945]
[1733679397825,0.046046,99841.0,99840.0,0.00313049]
[1733679397826,0.2256686,99841.0,99840.0,0.00313049]
[1733679398027,0.2256686,99841.0,99833.0,0.01]
[1733679398028,0.04505,99834.0,99833.0,0.01]
[1733679398224,0.17996898,99839.0,99833.0,1.50500911]
[1733679398421,0.078346,99841.0,99834.0,0.00500911]
[1733679398422,0.17996898,99836.0,99834.0,0.00500911]
[1733679398723,0.17996898,99836.0,99833.0,1.5006]
[1733679398724,0.04505,99834.0,99833.0,1.5006]
[1733679398922,0.04505,99834.0,99833.0,1.50500937]
[1733679400129,0.04605,99834.0,99833.0,1.50500937]
[1733679400815,0.04605,99834.0,99833.0,1.5]
[1733679403729,0.045053,99827.0,99826.0,0.01]
[1733679403925,0.001,99834.0,99820.0,0.045056]
[1733679404127,0.045054,99825.0,99821.0,1.5]
[1733679405326,0.045052,99828.0,99823.0,0.045054]
[1733679405527,0.045053,99827.0,99826.0,0.17989265]
[1733679406829,0.046053,99827.0,99826.0,0.17989265]
[1733679407531,0.045053,99826.0,99825.0,0.17989265]
[1733679407923,0.045054,99823.0,99822.0,0.23908297]
[1733679408932,0.046054,99823.0,99821.0,1.73968297]
[1733679409128,0.046054,99823.0,99821.0,1.73908297]
[1733679409629,0.001,99823.0,99821.0,1.73908297]
[1733679409830,0.045055,99822.0,99821.0,1.5]
[1733679410136,0.045055,99822.0,99821.0,1.50313088]
[1733679410534,0.045055,99822.0,99821.0,1.50814034]
[1733679411737,0.046055,99822.0,99821.0,1.50814034]
[1733679412135,0.045055,99822.0,99821.0,1.50814034]
[1733679412331,0.046055,99822.0,99821.0,1.50814034]
[1733679415632,0.046055,99822.0,99821.0,0.00313088]
[1733679415839,0.046055,99822.0,99821.0,0.18316437]
[1733679416237,0.046055,99822.0,99821.0,0.00313088]
[1733679418944,0.001,99822.0,99821.0,0.00313088]
[1733679419143,0.001,99822.0,99821.0,0.05319571]
[1733679419639,0.001,99822.0,99821.0,1.55319571]
[1733679420739,0.001,99822.0,99821.0,1.545055]
[1733679420940,0.046055,99822.0,99821.0,1.5531956]
[1733679421631,0.046055,99822.0,99821.0,1.545055]
[1733679424839,0.046055,99822.0,99821.0,1.55006466]
[1733679425044,0.046055,99822.0,99821.0,1.54818603]
[1733679426743,0.046055,99822.0,99821.0,1.90898603]
[1733679427234,0.001,99822.0,99821.0,1.90898603]
[1733679427439,0.0309,99830.0,99829.0,0.045052]
[1733679427640,0.075951,99830.0,99829.0,0.28513337]
[1733679428149,0.075951,99830.0,99829.0,0.24007899]
[1733679428448,0.045054,99825.0,99824.0,0.30010171]
[1733679428949,0.045055,99822.0,99821.0,1.86453103]
[1733679429144,0.045055,99822.0,99821.0,0.00313103]
[1733679429540,0.045055,99822.0,99821.0,0.00814073]
[1733679429741,0.045055,99822.0,99821.0,0.00626209]
[1733679430440,0.045055,99822.0,99821.0,0.246393]
[1733679431346,0.045055,99822.0,99821.0,0.00626209]
[1733679432055,0.046055,99822.0,99821.0,0.00726209]
[1733679432344,0.046055,99822.0,99821.0,0.00726224]
[1733679432942,0.046055,99822.0,99821.0,0.05231724]
[1733679432943,0.001,99822.0,99821.0,0.05231724]
[1733679433253,0.001,99822.0,99821.0,0.428883]
[1733679433442,0.001,99822.0,99821.0,1.928883]
[1733679435344,0.001,99822.0,99821.0,1.55732681]
[1733679435738,0.001,99822.0,99821.0,1.56748181]
[1733679436244,0.17979122,99836.0,99821.0,2.02309989]
[1733679436550,0.17979122,99839.0,99837.0,0.045048]
[1733679436755,0.22483822,99840.0,99839.0,0.045047]
[1733679436953,0.22483822,99840.0,99839.0,0.05318778]
[1733679437249,0.045047,99840.0,99839.0,0.05318778]
[1733679438254,0.047047,99840.0,99839.0,0.05318778]
[1733679439551,0.050047,99840.0,99839.0,0.05318778]
[1733679439755,0.005,99840.0,99839.0,0.05318778]
[1733679440545,0.005,99840.0,99839.0,1.55318778]
[1733679440743,0.005,99840.0,99839.0,1.56305247]
[1733679441452,0.005,99840.0,99839.0,1.5580429]
[1733679442452,0.050047,99840.0,99839.0,0.04817821]
[1733679443148,0.050047,99840.0,99839.0,0.045047]
[1733679443348,0.045049,99836.0,99835.0,0.28515207]
[1733679443547,0.045049,99836.0,99835.0,0.04817723]
[1733679444248,0.045049,99836.0,99835.0,1.54817723]
[1733679444454,0.047049,99836.0,99835.0,1.54817723]
[1733679444951,0.048049,99836.0,99835.0,1.54817723]
[1733679445749,0.048049,99836.0,99835.0,1.545047]
[1733679445954,0.048049,99836.0,99835.0,1.54817727]
[1733679448158,0.003,99836.0,99835.0,1.54817727]
[1733679449149,0.003,99836.0,99835.0,1.545047]
[1733679449351,0.003,99836.0,99835.0,1.54817733]
[1733679449651,0.003,99836.0,99835.0,1.55318583]
[1733679450448,0.048049,99836.0,99835.0,1.55318583]
[1733679452352,0.048049,99836.0,99835.0,1.50813883]
[1733679452660,0.048049,99836.0,99835.0,1.50313033]
[1733679454353,0.22784022,99836.0,99835.0,1.50313033]
[1733679454754,0.048049,99836.0,99835.0,1.50313033]
[1733679455353,0.22784022,99836.0,99835.0,1.50313033]
[1733679456560,0.22784022,99836.0,99835.0,1.5]
[1733679456759,0.048049,99836.0,99835.0,1.5]
[1733679457157,0.26094022,99836.0,99835.0,1.5]
[1733679457555,0.081149,99836.0,99835.0,1.5]
[1733679459665,0.441949,99836.0,99835.0,1.5]
[1733679464766,0.441949,99836.0,99835.0,1.50313084]
[1733679465864,0.441949,99836.0,99835.0,1.5]
[1733679466359,0.045052,99829.0,99828.0,0.01]
[1733679466560,0.045052,99829.0,99828.0,0.00313091]
[1733679468254,0.045052,99829.0,99828.0,0.00513091]
[1733679469455,0.045052,99829.0,99828.0,0.005131]
[1733679470165,0.045052,99829.0,99828.0,0.002]
[1733679471765,0.05492697,99829.0,99828.0,0.002]
[1733679471959,0.05492697,99829.0,99828.0,0.00513107]
[1733679473665,0.05492697,99829.0,99828.0,0.002]
[1733679475463,0.14224847,99829.0,99828.0,0.002]
[1733679480159,0.14218078,99829.0,99828.0,0.002]
[1733679480358,0.14218078,99829.0,99821.0,0.01]
[1733679480359,0.045055,99822.0,99821.0,0.01]
[1733679480665,0.045055,99822.0,99811.0,0.01]
[1733679480666,0.045059,99812.0,99811.0,0.01]
[1733679480969,0.04506,99810.0,99809.0,0.18001168]
[1733679481269,0.045062,99807.0,99806.0,1.74078507]
[1733679481471,0.045062,99807.0,99806.0,1.50313143]
[1733679481866,0.045062,99807.0,99806.0,1.5]
[1733679482164,0.045062,99806.0,99805.0,0.00150285]
[1733679482359,0.045062,99806.0,99805.0,0.18149703]
[1733679482560,0.045062,99806.0,99805.0,0.00150285]
[1733679484367,0.046062,99806.0,99805.0,0.00150285]
[1733679484865,0.05587151,99806.0,99805.0,0.00150285]
[1733679485058,0.05687151,99806.0,99805.0,0.00150285]
[1733679485670,0.01180951,99806.0,99805.0,0.04656585]
[1733679485971,0.002,99806.0,99805.0,0.04969748]
[1733679486161,0.002,99806.0,99805.0,0.05470759]
[1733679486467,0.002,99806.0,99805.0,1.54969748]
[1733679486774,0.001,99806.0,99805.0,1.55470768]
[1733679487560,0.046062,99806.0,99805.0,1.55470768]
[1733679487972,0.046062,99806.0,99805.0,1.54656585]
[1733679488471,0.001,99806.0,99805.0,1.54656585]
[1733679488865,0.001,99806.0,99805.0,1.55157597]
[1733679489067,0.001,99806.0,99805.0,1.55470729]
[1733679489366,0.001,99806.0,99805.0,0.05470729]
[1733679490367,0.001,99806.0,99805.0,0.05470728]
[1733679490869,0.046062,99806.0,99805.0,0.05470728]
[1733679492168,0.001,99806.0,99805.0,0.05470728]
[1733679492667,0.001,99806.0,99805.0,0.16742741]
[1733679492863,0.045058,99815.0,99814.0,0.045057]
[1733679493071,0.045058,99815.0,99814.0,0.05319843]
[1733679493771,0.045058,99815.0,99814.0,0.05319786]
[1733679495667,0.045058,99815.0,99814.0,0.05419786]
[1733679496079,0.045056,99821.0,99820.0,0.045055]
[1733679496276,0.045056,99821.0,99820.0,0.0481861]
[1733679496779,0.045056,99821.0,99820.0,0.04818604]
[1733679497177,0.045056,99821.0,99820.0,0.04918604]
[1733679497372,0.046056,99821.0,99820.0,0.04918604]
[1733679500479,0.046056,99821.0,99820.0,0.04918605]
[1733679502185,0.046056,99821.0,99820.0,0.05419577]
[1733679502576,0.046056,99821.0,99820.0,0.00429577]
[1733679503074,0.046056,99821.0,99820.0,0.04935177]
[1733679503882,0.046056,99821.0,99820.0,0.045056]
[1733679504079,0.045057,99817.0,99816.0,0.23993857]
[1733679506074,0.045057,99817.0,99816.0,0.28499657]
[1733679506576,0.045057,99817.0,99816.0,0.045058]
[1733679506979,0.045058,99816.0,99811.0,0.04506]
[1733679507177,0.06313813,99821.0,99814.0,0.23997822]
[1733679507379,0.06313813,99821.0,99820.0,0.1799892]
[1733679507580,0.10819313,99821.0,99820.0,0.1799892]
[1733679507774,0.045055,99821.0,99820.0,0.1799892]
[1733679508281,0.045055,99823.0,99820.0,0.17998406]
[1733679508481,0.37097591,99826.0,99820.0,0.17998406]
[1733679508881,0.045056,99820.0,99814.0,0.23997822]
[1733679509280,0.045056,99819.0,99815.0,0.23997822]
[1733679509587,0.045058,99816.0,99815.0,1.73997822]
[1733679510382,0.045058,99816.0,99815.0,1.5]
[1733679511978,0.045058,99816.0,99807.0,0.01]
[1733679511979,0.045061,99808.0,99807.0,0.01]
[1733679512173,0.045058,99816.0,99805.0,0.00150285]
[1733679512174,0.045062,99806.0,99805.0,0.00150285]
[1733679513384,0.045064,99801.0,99800.0,1.55210285]
[1733679513588,0.045064,99801.0,99800.0,1.55150285]
[1733679514683,0.045064,99801.0,99800.0,1.55463475]
[1733679515689,0.406864,99801.0,99800.0,1.55463475]
[1733679516190,0.406864,99801.0,99800.0,1.55150285]
[1733679516383,0.406864,99801.0,99800.0,1.55463478]
[1733679516588,0.406864,99801.0,99800.0,1.55150285]
[1733679517387,0.406864,99801.0,99800.0,1.55964589]
[1733679517687,0.41692797,99801.0,99800.0,1.55964589]
[1733679520086,0.41692797,99801.0,99800.0,1.55463479]
[1733679528088,0.41692797,99801.0,99800.0,1.55964571]
[1733679528293,0.43733934,99801.0,99800.0,1.55964571]
[1733679531101,0.43733934,99801.0,99800.0,1.55150285]
[1733679531285,0.43733934,99801.0,99800.0,1.55463471]
[1733679531490,0.43733934,99801.0,99800.0,1.55150285]
[1733679532195,0.43733934,99801.0,99800.0,1.5546347]
[1733679532900,0.43733934,99801.0,99800.0,1.55150285]
[1733679533096,0.43733934,99801.0,99800.0,1.55463468]
[1733679536696,0.43733934,99801.0,99800.0,1.73453112]
[1733679537099,0.43733934,99801.0,99800.0,1.55463468]
[1733679537400,0.43733934,99801.0,99800.0,1.73453112]
[1733679537603,0.43733934,99801.0,99800.0,1.55463468]
[1733679538105,0.43733934,99801.0,99800.0,1.73467966]
[1733679538501,0.43733934,99801.0,99800.0,1.55463468]
[1733679539407,0.43733934,99801.0,99800.0,1.55964562]
[1733679540814,0.61687036,99801.0,99800.0,1.55964562]
[1733679541106,0.61687036,99801.0,99800.0,1.55964563]
[1733679541503,0.43733934,99801.0,99800.0,1.55964563]
[1733679546507,0.43733934,99801.0,99800.0,1.55463469]
[1733679547412,0.43733934,99801.0,99800.0,1.55964564]
[1733679548108,0.43733934,99801.0,99800.0,1.55463469]
[1733679548498,0.07653934,99801.0,99800.0,1.55463469]
[1733679548910,0.07653934,99801.0,99800.0,1.55964563]
[1733679549100,0.07653934,99801.0,99800.0,1.55150285]
[1733679551403,0.07653934,99801.0,99800.0,1.79997952]
[1733679551805,0.07653934,99801.0,99800.0,1.79183674]
[1733679552203,0.07653934,99801.0,99800.0,1.79997948]
[1733679552807,0.001,99801.0,99800.0,1.79997948]
[1733679553017,0.001,99801.0,99800.0,1.60471059]
[1733679554209,0.001,99801.0,99800.0,1.6109738]
[1733679554815,0.001,99801.0,99800.0,0.1109738]
[1733679557908,0.046064,99801.0,99800.0,0.1109738]
[1733679563016,0.046064,99801.0,99800.0,0.10471059]
[1733679563219,0.046064,99801.0,99800.0,0.11097327]
[1733679570545,0.046064,99801.0,99800.0,0.1109733]
[1733679570850,0.046064,99801.0,99800.0,0.41080071]
[1733679572142,0.046064,99801.0,99800.0,0.78155347]
[1733679575452,0.046064,99801.0,99800.0,0.78125143]
[1733679576150,0.046064,99801.0,99800.0,0.48142402]
[1733679577047,0.001,99801.0,99800.0,0.48142402]
[1733679577247,0.001,99801.0,99800.0,0.48178591]
[1733679577845,0.001,99801.0,99800.0,0.11133519]
[1733679578347,0.001,99801.0,99800.0,0.1109733]
[1733679579056,0.22605106,99801.0,99800.0,0.0659083]
[1733679579260,0.16449705,99801.0,99800.0,0.0659083]
[1733679580154,0.1643775,99801.0,99800.0,0.0659083]
[1733679583653,0.1193135,99801.0,99800.0,0.0659083]
[1733679583859,0.001,99801.0,99800.0,0.1109733]
[1733679584058,0.18090094,99801.0,99800.0,0.1109733]
[1733679584359,0.001,99801.0,99800.0,0.1109733]
[1733679584958,0.001,99801.0,99800.0,0.47971631]
[1733679585676,0.001,99801.0,99800.0,0.11487337]
[1733679585956,0.045058,99815.0,99812.0,0.045059]
[1733679586153,0.045058,99815.0,99812.0,0.05320121]
[1733679587156,0.0331,99813.0,99812.0,0.05320121]
[1733679588851,0.078159,99813.0,99812.0,0.05320121]
[1733679590756,0.078159,99813.0,99812.0,0.05320028]
[1733679592157,0.0331,99813.0,99812.0,0.05320028]
[1733679592552,0.0331,99813.0,99812.0,0.05946257]
[1733679592952,0.0331,99813.0,99812.0,0.05320028]
[1733679594259,0.0331,99813.0,99812.0,0.05320023]
[1733679597358,0.0331,99813.0,99812.0,0.29325692]
[1733679598264,0.0331,99813.0,99812.0,0.23944469]
[1733679599357,0.0331,99813.0,99812.0,0.23318231]
[1733679599755,0.0331,99813.0,99812.0,0.05320023]
[1733679601159,0.0331,99813.0,99812.0,0.05319999]
[1733679601670,0.0331,99813.0,99812.0,0.05319992]
[1733679603063,0.078159,99813.0,99812.0,0.05319992]
[1733679603366,0.078159,99813.0,99812.0,0.04819016]
[1733679603563,0.078159,99813.0,99812.0,0.05320001]
[1733679606472,0.078159,99813.0,99812.0,0.05946238]
[1733679606882,0.078159,99813.0,99812.0,0.05946244]
[1733679610168,0.078159,99813.0,99812.0,0.29951913]
[1733679610371,0.078159,99813.0,99812.0,0.29951935]
[1733679610874,0.078159,99813.0,99812.0,0.05946266]
[1733679613377,0.078159,99813.0,99812.0,0.045059]
[1733679613767,0.078159,99813.0,99812.0,0.04819024]
[1733679613968,0.078159,99813.0,99812.0,0.06572518]
[1733679614169,0.078159,99813.0,99812.0,0.07073516]
[1733679614370,0.0331,99813.0,99812.0,0.07073516]
[1733679614770,0.0331,99813.0,99812.0,0.37113837]
[1733679614969,0.0331,99813.0,99812.0,0.07073516]
[1733679617081,0.21292599,99813.0,99812.0,0.07073516]
[1733679618080,0.21292599,99813.0,99812.0,0.07073451]
[1733679618672,0.0331,99813.0,99812.0,0.07073451]
[1733679618978,0.18082599,99813.0,99812.0,0.07073451]
[1733679619182,0.001,99813.0,99812.0,0.20348387]
[1733679619480,0.14983777,99820.0,99817.0,0.045057]
[1733679619675,0.14980508,99820.0,99819.0,2.08608027]
[1733679619881,0.14980508,99822.0,99819.0,1.92780136]
[1733679620080,0.17982599,99826.0,99825.0,0.045054]
[1733679620278,0.17982599,99828.0,99827.0,0.045053]
[1733679620473,0.17982599,99828.0,99827.0,0.05981755]
[1733679621070,0.17982599,99829.0,99827.0,0.01440303]
[1733679621287,0.17982599,99830.0,99828.0,0.01440303]
[1733679621477,0.17982599,99831.0,99830.0,0.045051]
[1733679621679,0.045051,99832.0,99830.0,0.01440303]
[1733679621872,0.045051,99832.0,99822.0,0.10017279]
[1733679621873,0.045051,99832.0,99831.0,0.05319184]
[1733679622779,0.049051,99832.0,99831.0,0.05319184]
[1733679622978,0.049051,99832.0,99831.0,0.23341211]
[1733679623177,0.049051,99832.0,99831.0,0.05319184]
[1733679624178,0.052051,99832.0,99831.0,0.05319184]
[1733679624381,0.048051,99832.0,99831.0,0.05319184]
[1733679624586,0.052051,99832.0,99831.0,0.04818209]
[1733679626579,0.052051,99832.0,99831.0,0.00313109]
[1733679629692,0.045052,99829.0,99828.0,0.045052]
[1733679629887,0.045052,99829.0,99828.0,0.05945331]
[1733679631587,0.050052,99829.0,99828.0,0.05945331]
[1733679638195,0.050052,99829.0,99828.0,0.05945333]
[1733679643197,0.050052,99829.0,99828.0,0.29975308]
[1733679643900,0.050052,99829.0,99828.0,0.29349163]
[1733679644296,0.050052,99829.0,99828.0,0.05319188]
[1733679644900,0.050052,99829.0,99828.0,0.05319187]
[1733679647203,0.050052,99829.0,99828.0,0.29325863]
[1733679647204,0.005,99829.0,99828.0,0.29325863]
[1733679647800,0.005,99829.0,99828.0,1.79325863]
[1733679648105,0.005,99829.0,99828.0,1.79952007]
[1733679648300,0.12467186,99829.0,99828.0,0.05945331]
[1733679648497,0.16972386,99829.0,99828.0,0.05945331]
[1733679649400,0.050052,99829.0,99828.0,0.05945331]
[1733679651397,0.16996473,99829.0,99828.0,0.05945331]
[1733679651710,0.16996473,99829.0,99828.0,0.35985652]
[1733679651906,0.16996473,99829.0,99828.0,0.05945331]
[1733679652210,0.005,99829.0,99828.0,0.35985652]
[1733679652410,0.005,99829.0,99828.0,0.44431489]
[1733679652704,0.005,99829.0,99828.0,0.82475778]
[1733679652912,0.005,99829.0,99828.0,2.32475778]
[1733679653204,0.005,99829.0,99828.0,1.61197025]
[1733679653404,0.17957673,99845.0,99828.0,1.61197025]
[1733679653405,0.17977529,99851.0,99836.0,0.01]
[1733679653608,0.0098124,99879.0,99858.0,0.045039]
[1733679653820,0.04503,99878.0,99866.0,0.045035]
[1733679654102,0.04503,99878.0,99873.0,0.045032]
[1733679654304,0.04503,99878.0,99874.0,0.00813869]
[1733679654507,0.04503,99878.0,99876.0,0.04503]
[1733679654706,0.04503,99878.0,99877.0,0.00813869]
[1733679655211,0.04503,99878.0,99877.0,0.00813605]
[1733679655913,0.05103,99878.0,99877.0,0.00813605]
[1733679656308,0.05203,99878.0,99877.0,0.00813605]
[1733679656810,0.05603,99878.0,99877.0,0.00813605]
[1733679657509,0.05603,99878.0,99877.0,0.00312925]
[1733679658502,0.05603,99878.0,99877.0,0.00312921]
[1733679659313,0.05603,99878.0,99876.0,0.04503]
[1733679660910,0.05203,99878.0,99876.0,0.04503]
[1733679661107,0.05603,99878.0,99876.0,0.04503]
[1733679661512,0.05503,99878.0,99876.0,0.04503]
[1733679661716,0.045031,99874.0,99873.0,0.3608]
[1733679661912,0.045033,99871.0,99870.0,8.087e-05]
[1733679662104,0.405833,99871.0,99870.0,8.087e-05]
[1733679662309,0.405833,99871.0,99860.0,0.01]
[1733679662310,0.045037,99861.0,99860.0,0.01]
[1733679662611,0.045037,99861.0,99858.0,0.045039]
[1733679662810,0.0319,99860.0,99858.0,0.045039]
[1733679664614,0.0319,99860.0,99858.0,0.047039]
[1733679664615,0.0329,99860.0,99858.0,0.047039]
[1733679665014,0.0329,99860.0,99858.0,0.045039]
[1733679665210,0.0339,99860.0,99858.0,0.045039]
[1733679665614,0.0322,99859.0,99858.0,0.045039]
[1733679666808,0.0332,99859.0,99858.0,0.045039]
[1733679667312,0.0332,99859.0,99858.0,0.0481689]
[1733679667512,0.001,99859.0,99858.0,0.045039]
[1733679667716,0.045029,99880.0,99863.0,0.045036]
[1733679667717,0.01,99864.0,99863.0,0.045036]
[1733679667903,0.01,99869.0,99868.0,0.045034]
[1733679668106,0.045029,99880.0,99876.0,0.045031]
[1733679668107,0.01,99877.0,99876.0,0.045031]
[1733679668308,0.0627,99882.0,99880.0,0.045029]
[1733679668617,0.0627,99882.0,99881.0,0.00312979]
[1733679669911,0.0677,99882.0,99881.0,0.00312979]
[1733679670720,0.0757,99882.0,99881.0,0.00312979]
[1733679671017,0.0677,99882.0,99881.0,0.00312979]
[1733679671217,0.0677,99882.0,99881.0,0.00412979]
[1733679671218,0.0757,99882.0,99881.0,0.00412979]
[1733679673211,0.0737,99882.0,99881.0,0.00412979]
[1733679674516,0.0697,99882.0,99881.0,0.00312979]
[1733679674719,0.0697,99882.0,99880.0,0.045029]
[1733679674915,0.0667,99882.0,99880.0,0.045029]
[1733679675107,0.0697,99882.0,99880.0,0.045029]
[1733679675706,0.0667,99882.0,99880.0,0.045029]
[1733679676019,0.0697,99882.0,99880.0,0.045029]
[1733679676206,0.114728,99882.0,99880.0,0.045029]
[1733679676615,0.0697,99882.0,99880.0,0.045029]
[1733679676815,0.0687,99882.0,99880.0,0.045029]
[1733679679717,0.0687,99882.0,99881.0,0.00312891]
[1733679681417,0.0657,99882.0,99881.0,0.00312891]
[1733679681617,0.0697,99882.0,99881.0,0.00312891]
[1733679682517,0.0697,99882.0,99881.0,0.00813514]
[1733679683318,0.0697,99882.0,99880.0,0.28518847]
[1733679683519,0.0697,99882.0,99881.0,0.2482949]
[1733679683923,0.0697,99882.0,99881.0,1.7482949]
[1733679684121,0.0697,99882.0,99881.0,1.50813543]
[1733679684821,0.0667,99882.0,99881.0,1.74770769]
[1733679685118,0.0687,99882.0,99881.0,1.50813543]
[1733679685324,0.0687,99882.0,99881.0,1.74771111]
[1733679685618,0.0667,99882.0,99881.0,1.7476981]
[1733679685816,0.0697,99882.0,99881.0,1.7476981]
[1733679686215,0.0697,99882.0,99881.0,1.74770306]
[1733679689419,0.0697,99882.0,99881.0,1.74269664]
[1733679690217,0.0697,99882.0,99881.0,1.74269663]
[1733679690726,0.0697,99882.0,99881.0,1.503129]
[1733679692117,0.107728,99882.0,99881.0,1.549157]
[1733679692323,0.108728,99882.0,99881.0,1.549157]
[1733679693516,0.108728,99882.0,99881.0,1.55416336]
[1733679694116,0.108728,99882.0,99881.0,1.55416343]
[1733679694526,0.107728,99882.0,99881.0,1.55416343]
[1733679694825,0.108728,99882.0,99881.0,1.55416343]
[1733679696321,0.25816854,99882.0,99881.0,1.55416343]
[1733679697227,0.108728,99882.0,99881.0,1.54915702]
[1733679697524,0.108728,99882.0,99881.0,1.55416346]
[1733679697721,0.108728,99882.0,99881.0,2.21640117]
[1733679697921,0.108728,99882.0,99881.0,1.8543628]
[1733679698121,0.108728,99882.0,99881.0,2.21645338]
[1733679698322,0.108728,99882.0,99881.0,1.91627345]
[1733679698721,0.108728,99882.0,99881.0,2.21645113]
[1733679699026,0.108728,99882.0,99881.0,1.91627345]
[1733679699328,0.108728,99882.0,99881.0,2.21645389]
[1733679699530,0.108728,99882.0,99881.0,2.21640431]
[1733679700426,0.108728,99882.0,99881.0,1.91658535]
[1733679700628,0.108728,99882.0,99881.0,1.91522387]
[1733679700922,0.108728,99882.0,99881.0,1.91658535]
[1733679701125,0.108728,99882.0,99881.0,1.91650434]
[1733679701327,0.108728,99882.0,99881.0,1.91614286]
[1733679701519,0.108728,99882.0,99881.0,1.91650434]
[1733679702124,0.107728,99882.0,99881.0,1.91650434]
[1733679702329,0.108728,99882.0,99881.0,1.91650434]
[1733679702725,0.108728,99882.0,99881.0,1.91614286]
[1733679703032,0.108728,99882.0,99881.0,1.91650456]
[1733679703033,0.107728,99882.0,99881.0,1.91650456]
[1733679703223,0.108728,99882.0,99881.0,2.21641962]
[1733679703418,0.108728,99882.0,99881.0,0.35443981]